[Event "DLM Youth 2024"]
[Site "Tuebingen"]
[Date "2024.10.04"]
[Round "3"]
[White "Fischer, Darja"]
[Black "Herrmann, Arthur"]
[Result "0-1"]
[ECO "D27"]
[WhiteElo "1872"]
[BlackElo "2031"]
[Annotator "RC"]
[PlyCount "62"]
[EventDate "2024.10.03"]
[EventType "team-swiss"]
[EventRounds "7"]
[EventCountry "GER"]
[SourceTitle "playchess.com"]
[Source "ChessBase"]
[SourceQuality "1"]
[TimeControl "40/5400+30:1800+30"]

1. d4 {[%emt 0:00:01]} d5 {[%emt 0:00:10]} 2. c4 {[%emt 0:00:04]} dxc4 {[%emt 0:00:07]} 3. Nf3 {[%emt 0:00:05]} Nf6 {[%emt 0:00:17]} 4. e3 {[%emt 0:00:04]} e6 {[%emt 0:00:19]} 5. Bxc4 {[%emt 0:00:15]} c5 {[%emt 0:00:07]} 6. Qe2 {[%emt 0:00:18]} a6 {[%emt 0:04:31]} 7. dxc5 {[%emt 0:01:10]} Bxc5 {[%emt 0:03:02]} 8. O-O {[%emt 0:01:07]} b5 {[%emt 0:22:05]} 9. Bd3 {[%emt 0:01:00]} Nbd7 {[%emt 0:01:07]} 10. Nc3 {[%emt 0:02:14]} Bb7 {[%emt 0:03:25]} 11. a3 {[%emt 0:05:05]} Qb8 {[%emt 0:05:46]} 12. e4 {[%emt 0:04:35]} O-O {[%emt 0:07:01]} 13. Be3 {[%emt 0:16:30]} Bxe3 {[%emt 0:10:11]} 14. Qxe3 {[%emt 0:01:40]} Ng4 {[%emt 0:01:39]} 15. Qg5 {[%emt 0:05:13]} Nde5 {[%emt 0:03:26]} 16. Nxe5 {[%emt 0:00:45]} Nxe5 {[%emt 0:00:05]} 17. Be2 {[%emt 0:01:35]} Rd8 {[%emt 0:11:35]} 18. Rad1 {[%emt 0:01:20]} Qc7 {[%emt 0:04:55]} 19. Rc1 {[%emt 0:12:42]} Nc6 {[%emt 0:01:42]} 20. Qe3 {[%emt 0:10:49]} Rac8 {[%emt 0:04:55]} 21. Rfd1 {[%emt 0:02:36]} Rxd1+ {[%emt 0:01:05]} 22. Rxd1 {[%emt 0:00:40]} Rd8 {[%emt 0:00:50]} 23. Rxd8+ {[%emt 0:02:12]} Qxd8 {[%emt 0:00:09]} 24. Qd3 {[%emt 0:00:28]} Nd4 {[%emt 0:04:52]} 25. f4 {[%emt 0:04:44]} Qb6 {[%emt 0:01:34]} 26. Kh1 {[%emt 0:02:07]} h6 {[%emt 0:00:54]} 27. Bd1 {[%emt 0:05:17]} a5 {[%emt 0:01:11]} 28. b4 {[%emt 0:02:59]} axb4 {[%emt 0:00:45]} 29. axb4 {[%emt 0:00:04]} f5 {[%emt 0:02:54]} 30. exf5 {[%emt 0:02:39]} exf5 {[%emt 0:01:17]} 31. Ne2 {[%emt 0:00:44]} Qc6 {[%emt 0:01:07]} 0-1

[Event "DLM Youth 2024"]
[Site "Tuebingen"]
[Date "2024.10.04"]
[Round "3"]
[White "Aniol, Nico"]
[Black "Kieselbach, Jannik"]
[Result "1/2-1/2"]
[ECO "C99"]
[WhiteElo "1864"]
[BlackElo "2014"]
[Annotator "RC"]
[PlyCount "69"]
[EventDate "2024.10.03"]
[EventType "team-swiss"]
[EventRounds "7"]
[EventCountry "GER"]
[SourceTitle "playchess.com"]
[Source "ChessBase"]
[SourceQuality "1"]
[TimeControl "40/5400+30:1800+30"]

1. e4 {[%emt 0:00:02]} e5 {[%emt 0:00:23]} 2. Nf3 {[%emt 0:00:05]} Nc6 {[%emt 0:00:12]} 3. Bb5 {[%emt 0:00:08]} a6 {[%emt 0:00:39]} 4. Ba4 {[%emt 0:00:11]} Nf6 {[%emt 0:00:12]} 5. O-O {[%emt 0:00:12]} Be7 {[%emt 0:00:13]} 6. Re1 {[%emt 0:01:32]} b5 {[%emt 0:00:21]} 7. Bb3 {[%emt 0:00:07]} O-O {[%emt 0:00:22]} 8. c3 {[%emt 0:01:46]} d6 {[%emt 0:00:37]} 9. h3 {[%emt 0:03:06]} Na5 {[%emt 0:00:31]} 10. Bc2 {[%emt 0:01:49]} c5 {[%emt 0:00:20]} 11. d4 {[%emt 0:00:54]} Qc7 {[%emt 0:00:19]} 12. Nbd2 {[%emt 0:03:03]} cxd4 {[%emt 0:32:14]} 13. cxd4 {[%emt 0:00:08]} Bd7 {[%emt 0:02:48]} 14. b4 {[%emt 0:07:50]} Nc6 {[%emt 0:03:50]} 15. a3 {[%emt 0:01:01]} exd4 {[%emt 0:06:19]} 16. Nb3 {[%emt 0:04:33]} Rac8 {[%emt 0:07:50]} 17. Nfxd4 {[%emt 0:05:29]} Ne5 {[%emt 0:10:26]} 18. Bf4 {[%emt 0:05:01]} Nc4 {[%emt 0:07:33]} 19. Bd3 {[%emt 0:08:54]} Qb6 {[%emt 0:02:31]} 20. Qe2 {[%emt 0:07:49]} Ne5 {[%emt 0:04:04]} 21. Be3 {[%emt 0:04:09]} Qb8 {[%emt 0:01:14]} 22. f4 {[%emt 0:09:27]} Nxd3 {[%emt 0:00:49]} 23. Qxd3 {[%emt 0:00:01]} Rfd8 {[%emt 0:01:35]} 24. Rad1 {[%emt 0:09:51]} Qc7 {[%emt 0:04:53]} 25. Rc1 {[%emt 0:02:50]} Qb7 {[%emt 0:00:30]} 26. Nd2 {[%emt 0:02:03]} Rxc1 {[%emt 0:00:34]} 27. Rxc1 {[%emt 0:00:02]} Rc8 {[%emt 0:00:20]} 28. Rc2 {[%emt 0:01:31]} Rc7 {[%emt 0:01:39]} 29. Kf2 {[%emt 0:04:04]} Qc8 {[%emt 0:02:02]} 30. Kf3 {[%emt 0:01:58]} Be6 {[%emt 0:02:02]} 31. Rxc7 {[%emt 0:03:48]} Qxc7 {[%emt 0:00:06]} 32. Nxe6 {[%emt 0:00:29]} fxe6 {[%emt 0:00:09]} 33. Bd4 {[%emt 0:02:21]} Qc6 {[%emt 0:02:33]} 34. Qc3 {[%emt 0:01:47]} Qxc3+ {[%emt 0:00:53]} 35. Bxc3 {[%emt 0:00:03]} 1/2-1/2

[Event "DLM Youth 2024"]
[Site "Tuebingen"]
[Date "2024.10.04"]
[Round "3"]
[White "Brunner, Sophia"]
[Black "Loos, Tilda"]
[Result "1/2-1/2"]
[ECO "A46"]
[WhiteElo "1863"]
[BlackElo "1700"]
[Annotator "NA RC"]
[PlyCount "76"]
[EventDate "2024.10.03"]
[EventType "team-swiss"]
[EventRounds "7"]
[EventCountry "GER"]
[SourceTitle "playchess.com"]
[Source "ChessBase"]
[SourceQuality "1"]
[TimeControl "40/5400+30:1800+30"]

1. d4 {[%emt 0:00:03]} Nf6 {[%emt 0:00:03]} 2. Nf3 {[%emt 0:00:07]} e6 {[%emt 0:00:04]} 3. g3 {[%emt 0:00:13]} d5 {[%emt 0:00:03]} 4. Bg2 {[%emt 0:00:26]} b5 {[%emt 0:00:04]} 5. O-O {[%emt 0:00:53]} Bb7 {[%emt 0:00:05]} 6. b3 {[%emt 0:00:43]} Be7 {[%emt 0:00:06]} 7. Bb2 {[%emt 0:00:18]} O-O {[%emt 0:00:06]} 8. Nbd2 {[%emt 0:00:15]} Nbd7 {[%emt 0:01:29]} 9. c4 {[%emt 0:01:00]} bxc4 {[%emt 0:00:33]} 10. bxc4 {[%emt 0:00:14]} Rb8 {[%emt 0:01:23]} 11. Qc2 {[%emt 0:05:39]} c5 {[%emt 0:06:47]} 12. Rab1 {[%emt 0:02:52]} dxc4 {[%emt 0:02:01]} 13. Qxc4 {[%emt 0:01:16]} Bd5 {[%emt 0:04:18]} 14. Qc2 {[%emt 0:01:52]} Bxa2 {[%emt 0:04:35]} 15. Ra1 {[%emt 0:00:16]} Bd5 {[%emt 0:00:16]} 16. Rfb1 $15 {[%emt 0:08:58]} cxd4 {[%emt 0:05:52]} 17. Bxd4 {[%emt 0:00:32]} Rxb1+ {[%emt 0:00:42]} 18. Qxb1 {[%emt 0:00:16]} a5 {[%emt 0:06:05]} 19. Bc3 {[%emt 0:02:10]} Bb4 {[%emt 0:09:08]} 20. Bxb4 {[%emt 0:00:25]} axb4 {[%emt 0:00:01]} 21. Qxb4 {[%emt 0:00:36]} Qb8 {[%emt 0:00:42]} 22. Qa3 {[%emt 0:12:46]} h6 {[%emt 0:04:32]} 23. Ne1 {[%emt 0:10:25]} Qe5 {[%emt 0:08:18]} 24. Bxd5 {[%emt 0:06:02]} Qxe2 {[%emt 0:08:44]} 25. Bxe6 {[%emt 0:00:43]} Qxe6 {[%emt 0:00:28]} 26. Qa6 {[%emt 0:05:03]} Qd5 {[%emt 0:06:10]} 27. Ndf3 {[%emt 0:04:47]} Ne5 {[%emt 0:02:58]} 28. Nxe5 {[%emt 0:01:51]} Qxe5 {[%emt 0:00:06]} 29. Ng2 {[%emt 0:02:07]} Qd4 {[%emt 0:09:17]} 30. Qa4 {[%emt 0:03:56]} Qe5 {[%emt 0:01:52]} 31. Re1 {[%emt 0:00:33]} Qd6 {[%emt 0:02:52]} 32. Qf4 {[%emt 0:03:33]} Qxf4 {[%emt 0:01:23]} 33. Nxf4 {[%emt 0:00:06]} Rd8 {[%emt 0:00:23]} 34. f3 {[%emt 0:04:13]} Kf8 {[%emt 0:02:52]} 35. Kf2 {[%emt 0:01:02]} Rd2+ {[%emt 0:00:45]} 36. Re2 {[%emt 0:00:08]} Rd7 {[%emt 0:01:03]} 37. Ng2 {[%emt 0:03:34]} Rd8 {[%emt 0:02:05]} 38. h3 {[%emt 0:05:27]} g6 {[%emt 0:04:03]} 1/2-1/2

[Event "DLM Youth 2024"]
[Site "Tuebingen"]
[Date "2024.10.04"]
[Round "3"]
[White "Kateryniuk, Ivan"]
[Black "Glowiak, Alexandra"]
[Result "0-1"]
[ECO "C45"]
[WhiteElo "1860"]
[BlackElo "1839"]
[Annotator "NA RC"]
[PlyCount "116"]
[EventDate "2024.10.03"]
[EventType "team-swiss"]
[EventRounds "7"]
[EventCountry "GER"]
[SourceTitle "playchess.com"]
[Source "ChessBase"]
[SourceQuality "1"]
[TimeControl "40/5400+30:1800+30"]

1. e4 {[%emt 0:00:10]} e5 {[%emt 0:00:01]} 2. Nf3 {[%emt 0:00:08]} Nc6 {[%emt 0:00:03]} 3. d4 {[%emt 0:00:06]} exd4 {[%emt 0:00:04]} 4. Nxd4 {[%emt 0:00:07]} Bc5 {[%emt 0:00:04]} 5. Be3 {[%emt 0:00:07]} Qf6 {[%emt 0:00:07]} 6. c3 {[%emt 0:00:08]} Nge7 {[%emt 0:01:02]} 7. Bc4 {[%emt 0:00:08]} O-O {[%emt 0:00:34]} 8. O-O {[%emt 0:00:42]} Qg6 {[%emt 0:04:48]} 9. Nd2 {[%emt 0:00:45]} Bxd4 {[%emt 0:02:48]} 10. cxd4 {[%emt 0:02:18]} d5 {[%emt 0:04:31]} 11. exd5 {[%emt 0:14:45]} Na5 {[%emt 0:03:38]} 12. Qe2 {[%emt 0:30:39]} Nxc4 {[%emt 0:02:59]} 13. Nxc4 {[%emt 0:00:23]} Nxd5 {[%emt 0:02:26]} 14. Rac1 {[%emt 0:04:54]} Re8 {[%emt 0:12:03]} 15. Qf3 {[%emt 0:04:55]} c6 {[%emt 0:08:40]} 16. Ne5 {[%emt 0:06:36]} Qf5 {[%emt 0:02:18]} 17. Qg3 {[%emt 0:01:54]} f6 {[%emt 0:10:31]} 18. Nc4 {[%emt 0:01:51]} Qg4 {[%emt 0:01:34]} 19. Nd6 {[%emt 0:18:35]} Qxg3 {[%emt 0:02:45]} 20. hxg3 {[%emt 0:00:03]} Nxe3 {[%emt 0:15:40]} 21. Nxe8 {[%emt 0:00:37]} Nxf1 {[%emt 0:00:06]} 22. Kxf1 {[%emt 0:00:19]} Bf5 {[%emt 0:01:47]} 23. Nd6 {[%emt 0:01:12]} Bd3+ {[%emt 0:00:20]} 24. Ke1 {[%emt 0:00:12]} Ba6 {[%emt 0:01:38]} 25. Nf5 {[%emt 0:03:56]} Rd8 {[%emt 0:04:29]} 26. Rd1 {[%emt 0:00:58]} Kf7 {[%emt 0:02:38]} 27. Rd2 {[%emt 0:01:29]} g6 {[%emt 0:07:21]} 28. Ne3 {[%emt 0:00:06]} h5 {[%emt 0:01:45]} 29. Kd1 {[%emt 0:00:29]} f5 {[%emt 0:02:01]} 30. Kc2 {[%emt 0:02:47]} Kf6 {[%emt 0:01:06]} 31. Kc3 {[%emt 0:02:27]} g5 {[%emt 0:00:37]} 32. f4 {[%emt 0:01:27]} Re8 {[%emt 0:02:43]} 33. Nc2 {[%emt 0:00:23]} Re4 {[%emt 0:00:30]} 34. Rf2 {[%emt 0:00:16]} Be2 {[%emt 0:02:47]} 35. a3 {[%emt 0:01:33]} Bd1 {[%emt 0:00:56]} 36. fxg5+ {[%emt 0:00:33]} Kxg5 {[%emt 0:00:19]} 37. Kd3 {[%emt 0:00:20]} Bxc2+ {[%emt 0:00:40]} 38. Rxc2 {[%emt 0:00:01]} Rg4 {[%emt 0:00:36]} 39. Kc4 {[%emt 0:00:52]} Rxg3 {[%emt 0:00:21]} 40. Kc5 {[%emt 0:00:15]} Rd3 {[%emt 0:00:32]} 41. Re2 {[%emt 0:02:22]} f4 {[%emt 0:10:14]} 42. Re7 {[%emt 0:00:34]} Rb3 {[%emt 0:01:57]} 43. a4 {[%emt 0:01:17]} Rxb2 {[%emt 0:00:33]} 44. a5 {[%emt 0:00:13]} Rb5+ {[%emt 0:01:30]} 45. Kd6 {[%emt 0:00:03]} Rd5+ {[%emt 0:16:13]} 46. Kc7 {[%emt 0:00:19]} Kf6 {[%emt 0:01:39]} 47. Re5 {[%emt 0:01:55]} Rxd4 {[%emt 0:01:13]} 48. Rxh5 {[%emt 0:00:07]} Rd5 {[%emt 0:00:26]} 49. Rh8 {[%emt 0:06:22]} Rxa5 {[%emt 0:00:08]} 50. Kxb7 {[%emt 0:00:06]} c5 {[%emt 0:00:15]} 51. Rf8+ {[%emt 0:00:13]} Ke5 {[%emt 0:00:17]} 52. Re8+ {[%emt 0:00:05]} Kd4 {[%emt 0:00:40]} 53. Rf8 {[%emt 0:00:10]} Ke3 {[%emt 0:00:12]} 54. Re8+ {[%emt 0:00:01]} Kf2 {[%emt 0:01:42]} 55. Rf8 {[%emt 0:00:03]} Ra4 {[%emt 0:00:19]} 56. g4 {[%emt 0:00:11]} f3 {[%emt 0:00:33]} 57. g5 {[%emt 0:00:25]} Kg2 {[%emt 0:00:40]} 58. g6 {[%emt 0:00:29]} Rg4 {[%emt 0:00:10]} 0-1

[Event "DLM Youth 2024"]
[Site "Tuebingen"]
[Date "2024.10.04"]
[Round "3"]
[White "Wartenberg, Alexander"]
[Black "Li, Yunqi"]
[Result "1-0"]
[ECO "C12"]
[WhiteElo "1857"]
[BlackElo "2004"]
[Annotator "NA RC"]
[PlyCount "89"]
[EventDate "2024.10.03"]
[EventType "team-swiss"]
[EventRounds "7"]
[EventCountry "GER"]
[SourceTitle "playchess.com"]
[Source "ChessBase"]
[SourceQuality "1"]
[TimeControl "40/5400+30:1800+30"]

1. e4 {[%emt 0:00:01]} e6 {[%emt 0:00:05]} 2. d4 {[%emt 0:00:06]} d5 {[%emt 0:00:09]} 3. Nc3 {[%emt 0:00:04]} Nf6 {[%emt 0:00:10]} 4. Bg5 {[%emt 0:00:04]} Bb4 {[%emt 0:00:06]} 5. e5 {[%emt 0:00:11]} h6 {[%emt 0:00:08]} 6. Bd2 {[%emt 0:00:03]} Bxc3 {[%emt 0:00:13]} 7. bxc3 {[%emt 0:00:15]} Ne4 {[%emt 0:00:10]} 8. Qg4 {[%emt 0:00:32]} g6 {[%emt 0:00:07]} 9. h4 {[%emt 0:00:40]} c5 {[%emt 0:02:25]} 10. h5 {[%emt 0:03:17]} g5 {[%emt 0:01:04]} 11. Bd3 {[%emt 0:00:49]} Nxd2 {[%emt 0:00:06]} 12. Kxd2 {[%emt 0:00:12]} c4 {[%emt 0:00:04]} 13. Bg6 {[%emt 0:03:06]} Rg8 {[%emt 0:12:09]} 14. Nh3 $19 {[%emt 0:38:17]} fxg6 {[%emt 0:08:33]} 15. hxg6 {[%emt 0:00:26]} Kd7 {[%emt 0:01:55]} 16. f4 {[%emt 0:08:46]} Kc7 {[%emt 0:08:18]} 17. Qh5 {[%emt 0:03:29]} gxf4 {[%emt 0:14:54]} 18. Qxh6 {[%emt 0:01:08]} Nc6 {[%emt 0:02:43]} 19. Raf1 {[%emt 0:05:11]} Ne7 {[%emt 0:02:52]} 20. Nxf4 {[%emt 0:01:58]} Qe8 {[%emt 0:02:37]} 21. Qh7 {[%emt 0:01:58]} Bd7 {[%emt 0:02:01]} 22. g7 {[%emt 0:05:23]} Nf5 {[%emt 0:11:19]} 23. Nh5 {[%emt 0:03:44]} Qe7 {[%emt 0:01:10]} 24. Rxf5 {[%emt 0:10:27]} exf5 {[%emt 0:00:55]} 25. Nf6 {[%emt 0:00:52]} Be6 {[%emt 0:01:05]} 26. Nxg8 {[%emt 0:04:14]} Rxg8 {[%emt 0:00:30]} 27. Qh4 {[%emt 0:01:18]} Kd7 {[%emt 0:05:00]} 28. Qxe7+ {[%emt 0:02:28]} Kxe7 {[%emt 0:00:24]} 29. Ke3 {[%emt 0:00:19]} Rxg7 {[%emt 0:00:21]} 30. Kf3 {[%emt 0:00:11]} Bd7 {[%emt 0:02:59]} 31. g3 {[%emt 0:00:45]} b6 {[%emt 0:01:29]} 32. Rh6 {[%emt 0:00:28]} Ba4 {[%emt 0:02:10]} 33. Rh2 {[%emt 0:04:37]} Kf7 {[%emt 0:00:13]} 34. Kf4 {[%emt 0:00:42]} Kg6 {[%emt 0:00:24]} 35. e6 {[%emt 0:00:59]} Kf6 {[%emt 0:03:18]} 36. Rh6+ {[%emt 0:00:18]} Ke7 {[%emt 0:02:19]} 37. Ke5 {[%emt 0:00:42]} Rxg3 {[%emt 0:03:51]} 38. Rh7+ {[%emt 0:00:28]} Kf8 {[%emt 0:00:35]} 39. Kxd5 {[%emt 0:00:45]} f4 {[%emt 0:04:47]} 40. Rf7+ {[%emt 0:00:33]} Ke8 {[%emt 0:00:12]} 41. Kd6 {[%emt 0:00:44]} Bb5 {[%emt 0:04:33]} 42. Rxa7 {[%emt 0:01:32]} Kf8 {[%emt 0:00:08]} 43. Rf7+ {[%emt 0:00:11]} Ke8 {[%emt 0:00:07]} 44. Rxf4 {[%emt 0:00:12]} Rxc3 {[%emt 0:00:44]} 45. e7 {[%emt 0:00:45]} 1-0

[Event "DLM Youth 2024"]
[Site "Tuebingen"]
[Date "2024.10.04"]
[Round "3"]
[White "Meitzner, Jonathan Franz"]
[Black "Wilmink, Anna"]
[Result "1/2-1/2"]
[ECO "C04"]
[WhiteElo "1845"]
[BlackElo "1927"]
[Annotator "RC"]
[PlyCount "101"]
[EventDate "2024.10.03"]
[EventType "team-swiss"]
[EventRounds "7"]
[EventCountry "GER"]
[SourceTitle "playchess.com"]
[Source "ChessBase"]
[SourceQuality "1"]
[TimeControl "40/5400+30:1800+30"]

1. e4 {[%emt 0:00:03]} e6 {[%emt 0:00:06]} 2. d4 {[%emt 0:00:10]} d5 {[%emt 0:00:06]} 3. Nd2 {[%emt 0:00:08]} Nc6 {[%emt 0:00:12]} 4. c3 {[%emt 0:04:31]} e5 {[%emt 0:01:48]} 5. exd5 {[%emt 0:12:43]} Qxd5 {[%emt 0:00:22]} 6. Qe2 {[%emt 0:00:21]} Be6 {[%emt 0:06:14]} 7. dxe5 {[%emt 0:04:40]} Qxe5 {[%emt 0:09:59]} 8. Ngf3 {[%emt 0:03:18]} Qf5 {[%emt 0:08:26]} 9. Qb5 {[%emt 0:03:53]} O-O-O {[%emt 0:05:36]} 10. Be2 {[%emt 0:03:40]} Nf6 {[%emt 0:15:25]} 11. Nb3 {[%emt 0:10:33]} Qxb5 {[%emt 0:12:55]} 12. Bxb5 {[%emt 0:00:22]} Bd5 {[%emt 0:03:07]} 13. Be2 {[%emt 0:22:43]} Bd6 {[%emt 0:05:29]} 14. h3 {[%emt 0:03:01]} Rhe8 {[%emt 0:02:35]} 15. Be3 {[%emt 0:00:40]} a6 {[%emt 0:06:32]} 16. O-O-O {[%emt 0:05:20]} Be4 {[%emt 0:03:56]} 17. Rhg1 {[%emt 0:03:44]} Nd5 {[%emt 0:02:28]} 18. Bd2 {[%emt 0:07:39]} Nf4 {[%emt 0:02:22]} 19. Bf1 {[%emt 0:01:07]} Bd3 {[%emt 0:01:55]} 20. Re1 {[%emt 0:04:00]} Rxe1+ {[%emt 0:04:35]} 21. Nxe1 {[%emt 0:00:31]} Bxf1 {[%emt 0:03:16]} 22. Rxf1 {[%emt 0:00:45]} Re8 {[%emt 0:01:17]} 23. Be3 {[%emt 0:01:45]} Nd5 {[%emt 0:00:17]} 24. Bd2 {[%emt 0:01:07]} Bf4 {[%emt 0:01:13]} 25. Nd3 {[%emt 0:02:40]} Ne5 {[%emt 0:01:21]} 26. Nbc5 {[%emt 0:02:15]} Bxd2+ {[%emt 0:00:32]} 27. Kxd2 {[%emt 0:00:24]} Nc4+ {[%emt 0:00:42]} 28. Kc1 {[%emt 0:00:41]} a5 {[%emt 0:00:28]} 29. Re1 {[%emt 0:00:46]} Rxe1+ {[%emt 0:00:29]} 30. Nxe1 {[%emt 0:00:06]} b6 {[%emt 0:00:44]} 31. Ne4 {[%emt 0:00:26]} f5 {[%emt 0:00:19]} 32. Ng5 {[%emt 0:00:18]} h6 {[%emt 0:00:39]} 33. Ne6 {[%emt 0:00:30]} g6 {[%emt 0:00:15]} 34. h4 {[%emt 0:00:44]} Ne5 {[%emt 0:00:26]} 35. g3 {[%emt 0:01:30]} Kd7 {[%emt 0:00:32]} 36. Nd4 {[%emt 0:00:45]} c5 {[%emt 0:00:25]} 37. Ne2 {[%emt 0:00:24]} g5 {[%emt 0:00:36]} 38. hxg5 {[%emt 0:00:26]} hxg5 {[%emt 0:00:05]} 39. f4 {[%emt 0:00:22]} gxf4 {[%emt 0:00:18]} 40. gxf4 {[%emt 0:00:07]} Ng6 {[%emt 0:00:17]} 41. Ng2 {[%emt 0:31:05]} b5 {[%emt 0:02:32]} 42. Kc2 {[%emt 0:00:00]} Kd6 {[%emt 0:03:05]} 43. b3 {[%emt 0:00:00]} b4 {[%emt 0:07:05]} 44. c4 {[%emt 0:00:00]} Nf6 {[%emt 0:01:27]} 45. Ng3 {[%emt 0:00:00]} Ke6 {[%emt 0:01:05]} 46. Kd3 {[%emt 0:00:00]} Ng4 {[%emt 0:02:00]} 47. Ke2 {[%emt 0:00:00]} Nf6 {[%emt 0:00:30]} 48. Kf3 {[%emt 0:00:00]} Ne8 {[%emt 0:00:30]} 49. Nh5 {[%emt 0:00:00]} Nd6 {[%emt 0:00:30]} 50. Ng3 {[%emt 0:00:00]} Ne8 {[%emt 0:00:30]} 51. Ke3 {[%emt 0:00:00]} 1/2-1/2

[Event "DLM Youth 2024"]
[Site "Tuebingen"]
[Date "2024.10.04"]
[Round "3"]
[White "Schwarzfischer, Julia"]
[Black "Fischermann, Simon"]
[Result "0-1"]
[ECO "C54"]
[WhiteElo "1788"]
[BlackElo "1873"]
[Annotator "NA RC"]
[PlyCount "86"]
[EventDate "2024.10.03"]
[EventType "team-swiss"]
[EventRounds "7"]
[EventCountry "GER"]
[SourceTitle "playchess.com"]
[Source "ChessBase"]
[SourceQuality "1"]
[TimeControl "40/5400+30:1800+30"]

1. e4 {[%emt 0:00:01]} e5 {[%emt 0:00:01]} 2. Bc4 {[%emt 0:00:06]} Nc6 {[%emt 0:00:07]} 3. Nf3 {[%emt 0:00:09]} Nf6 {[%emt 0:00:06]} 4. d3 {[%emt 0:00:02]} a6 {[%emt 0:00:04]} 5. c3 {[%emt 0:00:08]} Bc5 {[%emt 0:00:12]} 6. a4 {[%emt 0:01:50]} d6 {[%emt 0:00:32]} 7. Bg5 {[%emt 0:02:03]} O-O {[%emt 0:03:33]} 8. O-O {[%emt 0:07:08]} Bg4 {[%emt 0:00:47]} 9. Nbd2 {[%emt 0:04:38]} Qe7 {[%emt 0:01:12]} 10. h3 {[%emt 0:01:05]} Bh5 {[%emt 0:00:20]} 11. Re1 {[%emt 0:02:07]} Nd8 {[%emt 0:00:38]} 12. Nf1 {[%emt 0:05:23]} Ne6 {[%emt 0:00:24]} 13. Bh4 {[%emt 0:03:30]} c6 {[%emt 0:01:04]} 14. Ng3 {[%emt 0:03:57]} Bg6 {[%emt 0:00:50]} 15. b4 $14 {[%emt 0:02:08]} (15. d4 $16 Ba7 16. Nf5 (16. dxe5 dxe5 17. Nf5 Qc5 $16)) 15... Ba7 {[%emt 0:00:09]} 16. Qc2 {[%emt 0:06:48]} Nf4 {[%emt 0:01:50]} (16... Qd7 $11) 17. Rad1 {[%emt 0:05:53]} Rfe8 {[%emt 0:03:21]} 18. Qc1 {[%emt 0:02:59]} N4h5 {[%emt 0:03:14]} 19. Ne2 {[%emt 0:04:53]} Qd7 {[%emt 0:02:18]} 20. Kh2 {[%emt 0:07:54]} d5 {[%emt 0:02:19]} 21. exd5 {[%emt 0:02:21]} cxd5 {[%emt 0:00:28]} 22. Bb3 {[%emt 0:00:22]} Bb8 {[%emt 0:00:42]} 23. Ng3 {[%emt 0:06:02]} Bc7 {[%emt 0:07:47]} 24. c4 {[%emt 0:06:25]} Rac8 {[%emt 0:01:13]} 25. Qb2 {[%emt 0:04:09]} e4 {[%emt 0:04:09]} 26. dxe4 {[%emt 0:01:59]} Bxe4 {[%emt 0:00:17]} 27. Ng5 {[%emt 0:07:18]} Bxg2 {[%emt 0:09:55]} 28. Rxe8+ {[%emt 0:02:17]} Rxe8 {[%emt 0:00:42]} 29. Kxg2 {[%emt 0:00:46]} Nf4+ {[%emt 0:06:08]} 30. Kg1 {[%emt 0:06:36]} h6 {[%emt 0:00:00]} 31. Bc2 {[%emt 0:00:55]} hxg5 32. Bf5 {[%emt 0:02:51]} Nxh3+ {[%emt 0:00:00]} 33. Kf1 {[%emt 0:00:00]} Qxa4 {[%emt 0:00:42]} 34. Ra1 {[%emt 0:00:00]} Qc6 {[%emt 0:00:16]} 35. Bxh3 {[%emt 0:00:27]} Qxc4+ {[%emt 0:00:19]} 36. Kg1 {[%emt 0:00:58]} Qxh4 {[%emt 0:01:47]} 37. Bg2 {[%emt 0:02:12]} Bxg3 {[%emt 0:00:37]} 38. fxg3 {[%emt 0:00:05]} Qxg3 {[%emt 0:00:08]} 39. Qb1 {[%emt 0:00:40]} Ng4 {[%emt 0:00:27]} 40. Qd1 {[%emt 0:00:43]} Qh2+ {[%emt 0:00:11]} 41. Kf1 {[%emt 0:30:08]} Ne3+ {[%emt 0:30:01]} 42. Kf2 {[%emt 0:00:39]} Qxg2+ {[%emt 0:00:07]} 43. Ke1 {[%emt 0:00:05]} Nc2# {[%emt 0:00:09]} 0-1

[Event "DLM Youth 2024"]
[Site "Tuebingen"]
[Date "2024.10.04"]
[Round "3"]
[White "Bursan, Ana-Maria"]
[Black "Wartenberg, Alissa"]
[Result "1/2-1/2"]
[ECO "C25"]
[WhiteElo "1769"]
[BlackElo "1813"]
[Annotator "NA RC"]
[PlyCount "57"]
[EventDate "2024.10.03"]
[EventType "team-swiss"]
[EventRounds "7"]
[EventCountry "GER"]
[SourceTitle "playchess.com"]
[Source "ChessBase"]
[SourceQuality "1"]
[TimeControl "40/5400+30:1800+30"]

1. e4 {[%emt 0:00:07]} e5 {[%emt 0:00:16]} 2. Nc3 {[%emt 0:00:05]} Nc6 {[%emt 0:00:03]} 3. f4 {[%emt 0:00:07]} exf4 {[%emt 0:00:10]} 4. Nf3 {[%emt 0:00:11]} g5 {[%emt 0:00:05]} 5. g3 {[%emt 0:00:06]} g4 {[%emt 0:00:08]} 6. Nh4 {[%emt 0:00:07]} f3 {[%emt 0:00:05]} 7. d4 {[%emt 0:00:20]} d6 {[%emt 0:00:16]} 8. Bf4 {[%emt 0:01:28]} Be7 {[%emt 0:05:49]} 9. Nd5 {[%emt 0:06:32]} Bxh4 {[%emt 0:22:49]} 10. gxh4 {[%emt 0:00:53]} Qxh4+ {[%emt 0:00:22]} 11. Bg3 {[%emt 0:00:08]} Qd8 {[%emt 0:01:18]} 12. Bb5 {[%emt 0:08:24]} a6 {[%emt 0:06:52]} 13. Ba4 $17 {[%emt 0:02:31]} b5 {[%emt 0:03:28]} 14. Bb3 {[%emt 0:01:31]} Na5 {[%emt 0:02:41]} 15. Qd3 {[%emt 0:05:13]} Nxb3 {[%emt 0:09:50]} 16. cxb3 {[%emt 0:02:56]} Bb7 {[%emt 0:03:41]} 17. Ne3 {[%emt 0:01:57]} Qe7 {[%emt 0:13:44]} 18. d5 {[%emt 0:11:26]} Nf6 {[%emt 0:06:41]} 19. Qc3 {[%emt 0:05:58]} Qxe4 {[%emt 0:05:04]} 20. Qxf6 {[%emt 0:12:51]} Qxe3+ {[%emt 0:00:09]} 21. Kd1 {[%emt 0:00:16]} Qd3+ {[%emt 0:04:14]} 22. Kc1 {[%emt 0:00:21]} Qe3+ {[%emt 0:01:33]} 23. Kd1 {[%emt 0:03:22]} Qd3+ {[%emt 0:07:45]} 24. Kc1 {[%emt 0:00:14]} Qe3+ {[%emt 0:04:02]} 25. Kd1 {[%emt 0:00:33]} Qd3+ {[%emt 0:01:19]} 26. Kc1 {[%emt 0:00:07]} Qe3+ {[%emt 0:00:20]} 27. Kd1 {[%emt 0:00:16]} Qe2+ {[%emt 0:00:39]} 28. Kc1 {[%emt 0:00:24]} Qe3+ {[%emt 0:00:29]} 29. Kd1 {[%emt 0:00:09]} 1/2-1/2